Cogmind - Beta 13 @@@ ROGUE MODE // 2024.04.25 @ 22:53:23 Player: Exceptionally Mediocre Result: Destroyed by S-43 Plague with Heavy Machine Gun Performance ------------- Evolutions (7) 3500 Regions Visited (15) 3000 Robots Destroyed (96) 480 Value Destroyed (2485) 2485 Prototype IDs (32) 640 Alien Tech Used (0) 0 Bonus (2069) 2069 TOTAL SCORE: 12174 Bonus ------- High Alert Combat Kills 775 Follower Combat Kills 1122 Aligned with FarCom 300 Friendly Fire -128 Cogmind --------- Core Integrity 0/1300 Matter 207/300 Energy 21/100 System Corruption 0% Temperature Cool (0) Movement Core (50) Location -3/Research Parts ------- > --- POWER (2) -------- (None) > --- PROPULSION (7) --- (None) > --- UTILITY (10) ----- Improved Target Analyzer Graphene Brace Makeshift System Shield > --- WEAPON (2) ------- (None) > --- INVENTORY (5) ---- Field Propulsion Array Improved Propulsion Shielding Force Field Katana Peak State ------------ > --- POWER ------------ Micro Fission Core Improved Fusion Compressor > --- PROPULSION ------- Enhanced Flexi-carbon Leg Backup Propulsion I Improved Gravmag System Antigrav System Gyrokinetic Inverter Linear Gravjet Improved Gyrokinetic Inverter > --- UTILITY ---------- Experimental Power Amplifier Large Storage Unit Structural Scanner Improved Melee Analysis Suite Improved Target Analyzer Improved Propulsion Shielding Graphene Brace Hacking Suite Makeshift System Shield > --- WEAPON ----------- Thunder Hammer Thunder Hammer > --- INVENTORY -------- Improved Fusion Compressor Field Propulsion Array Experimental Power Amplifier Energy Well Improved Target Analyzer Advanced Transmission Jammer Improved Propulsion Shielding Graphene Brace Force Field Hacking Suite Railgun Hypervelocity Mass Driver Katana Katana [Rating: 110] Favorites ----------- Power Ion Engine Engine Ion Engine Power Core Nuclear Core Reactor Antimatter Reactor Propulsion Light Treads Treads Light Treads Leg Enhanced Flexi-carbon Leg Wheel Centrium Wheel Hover Unit Gyrokinetic Inverter Flight Unit Cooled VTOL Module Utility Humpback Device Structural Scanner Storage Humpback Processor Improved Targeting Computer Hackware Hacking Suite Protection Improved Propulsion Shielding Weapon Enhanced Autogun Energy Gun Particle Gun Energy Cannon Proton Cannon Ballistic Gun Enhanced Autogun Ballistic Cannon Gauss Cannon Launcher Grenade Launcher Special Weapon Improved Plasma Cutter Impact Weapon Thunder Hammer Slashing Weapon Katana Build | -11 -10 -10 -10 -9 -8 -7 -7 -7 -7 -7 -6 -6 -5 -4 -3 ------- Run | Yrd Mat Min Exi Min Mat Fac Was Fac Low Low Fac Ext Fac Fac Res Slots Evolved 14 | . . . . . 4 2 . . . . 2 . 2 2 2 Power 1 | . . . . . . . . . . . . . 1 . . Propulsion 5 | . . . . . 2 1 . . . . . . . 2 . Utility 8 | . . . . . 2 1 . . . . 2 . 1 . 2 Weapon . | . . . . . . . . . . . . . . . . Parts Attached 124 | 9 18 1 1 2 16 3 6 26 2 . 6 4 3 20 7 Power 14 | 2 4 1 . . 1 . 1 1 . . 2 . . 2 . Engine 8 | 2 4 1 . . . . . . . . 1 . . . . Core 3 | . . . . . 1 . . . . . . . . 2 . Reactor 3 | . . . . . . . 1 1 . . 1 . . . . Propulsion 40 | 2 6 . . 1 6 1 2 12 . . . . . 10 . Treads 23 | 2 6 . . 1 5 1 2 6 . . . . . . . Leg 1 | . . . . . . . . . . . . . . 1 . Wheel 1 | . . . . . . . . . . . . . . 1 . Hover 8 | . . . . . . . . . . . . . . 8 . Flight 7 | . . . . . 1 . . 6 . . . . . . . Utility 42 | 3 4 . 1 . 5 2 3 7 1 . 2 2 2 6 4 Device 15 | 2 2 . . . 1 1 2 3 . . . 1 1 1 1 Storage 7 | 1 2 . 1 . . . . 1 . . . . . 2 . Processor 10 | . . . . . 2 1 . . . . 1 . 1 2 3 Hackware 5 | . . . . . . . . 2 1 . 1 1 . . . Protection 5 | . . . . . 2 . 1 1 . . . . . 1 . Artifact . | . . . . . . . . . . . . . . . . Weapon 28 | 2 4 . . 1 4 . . 6 1 . 2 2 1 2 3 Energy Gun 4 | . 1 . . . 1 . . 1 . . 1 . . . . Energy Cannon 1 | . . . . . . . . . . . . 1 . . . Ballistic Gun 9 | 2 1 . . 1 3 . . 2 . . . . . . . Ballistic Cannon 1 | . . . . . . . . 1 . . . . . . . Launcher 2 | . 1 . . . . . . 1 . . . . . . . Special Weapon 2 | . 1 . . . . . . . . . . . 1 . . Impact Weapon 3 | . . . . . . . . 1 . . . . . . 2 Slashing Weapon 6 | . . . . . . . . . 1 . 1 1 . 2 1 Piercing Weapon . | . . . . . . . . . . . . . . . . Special Melee Weapon . | . . . . . . . . . . . . . . . . Unidentified Prototypes 9 | . . . . . 4 . . 2 . . . . . 1 2 Parts Lost 53 | . 4 . . . 1 . . 14 . . 7 7 . 2 18 Power 7 | . 1 . . . . . . 2 . . 1 . . 1 2 Propulsion 15 | . . . . . . . . 6 . . 1 1 . . 7 Utility 17 | . 1 . . . 1 . . 2 . . 2 4 . 1 6 Weapon 14 | . 2 . . . . . . 4 . . 3 2 . . 3 Highest Loss Streak 18 | . 2 . . . 1 . . 7 . . 6 7 . 1 18 To Critical Strikes . | . . . . . . . . . . . . . . . . Average Slot Usage (%) 82 | . 98 100 92 85 90 92 82 70 65 69 63 48 34 81 73 Engine 6 | . 13 14 14 14 6 . . . . . 2 . . 4 . Core 1 | . . . . . 2 7 1 . . . . . . 3 6 Reactor 1 | . . . . . . . 5 6 . . . . . . . Treads 23 | . 27 28 28 28 35 38 28 20 . . . . . . . Hover 1 | . . . . . . . . . . . . . . 19 20 Device 5 | . 14 14 6 . . 7 7 4 . . . 2 5 9 9 Storage 8 | . 14 14 14 14 9 7 7 6 . . . . . 2 3 Processor 8 | . . . . . 11 15 15 15 15 15 18 17 10 13 8 Hackware 2 | . . . . . . . . . 19 23 22 17 11 10 7 Protection 1 | . . . . . 6 . . . . . . . . 2 2 Energy Gun 3 | . 6 14 14 4 . . . . 7 7 2 . . . . Ballistic Gun 8 | . 16 . . 9 12 15 15 9 . . . . . . . Launcher 5 | . 3 14 14 14 5 . . . . . . . . . . Naked Turns . | . . . . . . . . . . . . . . . . Heaviest Build 234 | 14 52 52 211 211 213 214 230 234 6 6 9 12 3 40 49 Greatest Support 160 | 40 40 40 40 40 80 100 160 160 10 10 10 5 3 59 49 Greatest Overweight (x) 5 | . 2 1 5 5 2 2 2 3 . . . 2 . . 2 Average Overweight (x) . | . . 1 2 5 2 2 1 . . . . . . . . Largest Inventory Capacity 35 | 8 20 20 35 35 35 35 35 35 5 5 5 5 5 15 15 Average Capacity 25 | 7 13 20 27 35 35 35 35 31 5 5 5 5 5 10 14 Most Carried 35 | 6 18 18 24 35 35 34 35 35 5 5 5 5 5 15 15 Average Carried 23 | 3 10 18 19 34 34 33 34 30 4 5 4 4 4 9 14 Final Capacity 35 | 8 20 20 35 35 35 35 35 5 5 5 5 5 5 15 5 Final Carried 35 | 6 18 18 24 35 35 34 35 5 5 5 4 5 5 14 5 Class Distribution -------------------- 59% | Hauler-Mutant 11% | Scavenger-Mutant 10% | Mutant 6% | Hacker-Gladiator 6% | Hacker-Mutant 3% | Hacker-Sprinter Dominant Class ---------------- Mutant | -10/Materials Scavenger-Mutant | -10/Mines Hauler-Mutant | -10/Exiles Hauler-Mutant | -9/Mines Hauler-Mutant | -8/Materials Hauler-Mutant | -7/Factory Hauler-Mutant | -7/Waste Hauler-Mutant | -7/Factory Hacker-Sprinter | -7/Lower Caves Hacker-Sprinter | -7/Lower Caves Hacker-Sprinter | -6/Factory Hacker-Mutant | -6/Extension Hacker-Mutant | -5/Factory Hacker-Gladiator | -4/Factory Hacker-Gladiator | -3/Research Resources | -11 -10 -10 -10 -9 -8 -7 -7 -7 -7 -7 -6 -6 -5 -4 -3 ----------- Run | Yrd Mat Min Exi Min Mat Fac Was Fac Low Low Fac Ext Fac Fac Res Matter Collected 2511 | 386 300 18 144 49 516 . 131 727 30 . . 55 . 155 . Remotely . | . . . . . . . . . . . . . . . . Salvage Created 2989 | 231 635 39 . 117 544 . . 861 . . 142 76 . 157 187 Parts 184 | 18 45 6 . 10 28 . . 48 . . 9 9 . 4 7 Haulers Intercepted 7 | . 2 . . . 1 . . 2 . . 1 . . . 1 Recyclers Shooed 2 | . . . . . . . . 2 . . . . . . . Parts Field Recycled . | . . . . . . . . . . . . . . . . Retrieved Matter . | . . . . . . . . . . . . . . . . Parts Self-Destructed . | . . . . . . . . . . . . . . . . Prevented . | . . . . . . . . . . . . . . . . Kills | -11 -10 -10 -10 -9 -8 -7 -7 -7 -7 -7 -6 -6 -5 -4 -3 ------- Run | Yrd Mat Min Exi Min Mat Fac Was Fac Low Low Fac Ext Fac Fac Res Combat Hostiles Destroyed 53 | . 10 3 . 4 10 . . 17 . . 7 . . . 2 Melee 2 | . . . . . . . . . . . . . . . 2 Guns 27 | . 10 . . . 10 . . 7 . . . . . . . Cannons 5 | . . . . . . . . 5 . . . . . . . AOE 19 | . . 3 . 4 . . . 5 . . 7 . . . . Classes Destroyed 16 | 3 5 1 . . 2 . . 4 . . . . . . 1 Worker 11 | 2 . . . . . . . 7 . . . . . 2 . Builder 6 | . 3 1 . . . . . 1 . . . 1 . . . Tunneler 5 | 5 . . . . . . . . . . . . . . . Hauler 7 | . 2 . . . 1 . . 2 . . 1 . . . 1 Recycler 4 | 1 . . . 1 . . . 1 . . . . . 1 . Mechanic 2 | . 1 . . . . . . 1 . . . . . . . Operator 4 | . 1 . . . 1 . . 1 . . . 1 . . . Watcher 3 | . . . . . 2 . . . . . . 1 . . . Swarmer 18 | . . 3 . 4 3 . . . . . 7 . . . 1 Grunt 22 | . 10 . . . 6 . . 6 . . . . . . . Duelist 1 | . . . . . . . . . . . . . . . 1 Protector 1 | . . . . . . . . 1 . . . . . . . Sentry 1 | . . . . . . . . 1 . . . . . . . Specialist 1 | . . . . . . . . 1 . . . . . . . Hunter 3 | . . . . . 1 . . 2 . . . . . . . Programmer 6 | . . . . . . . . 6 . . . . . . . Wasp 1 | . . . . . . . . 1 . . . . . . . Best Kill Streak 11 | 3 5 4 . 4 4 . . 11 . . 7 3 . 1 2 Combat Bots Only 7 | . 4 3 . 4 3 . . 5 . . 7 . . . 2 Max Kills in Single Turn 7 | 1 1 2 . 3 1 . . 2 . . 7 1 . 1 1 Gunslinging . | . . . . . . . . . . . . . . . . Exploded 7 | . . 2 . 3 . . . 1 . . 7 . . . . Melee 1 | . . . . . . . . . . . . . . . 1 Uniques/NPCs Destroyed . | . . . . . . . . . . . . . . . . Combat | -11 -10 -10 -10 -9 -8 -7 -7 -7 -7 -7 -6 -6 -5 -4 -3 -------- Run | Yrd Mat Min Exi Min Mat Fac Was Fac Low Low Fac Ext Fac Fac Res Hostile Shots Fired 891 | . 129 5 . 5 55 . . 241 6 9 74 101 . 52 214 Missed 353 | . 42 3 . 2 17 . . 84 2 4 36 59 . 27 77 Damage Taken 8793 | . 906 39 . 49 530 . . 2452 58 83 663 567 4 500 2942 Core 2805 | . 120 33 . 2 57 . . 293 24 49 364 445 . 113 1305 Absorbed by Shields 14 | . . . . . . . . 14 . . . . . . . Redirected to Shielding 277 | . . . . . 76 . . 101 . . . . . 28 72 Regen/Repaired (Parts) 226 | . . . . . 11 . 153 . . . . . . 62 . Core Remaining (%) 66 | 100 . . . 38 89 . . . . 47 . 4 100 90 . Volleys Fired 217 | 24 68 3 . 8 47 . . 58 . . 5 . 4 . . Largest 2 | 2 2 1 . 1 2 . . 2 . . 1 . 1 . . Hottest 100 | 40 100 30 . 65 50 . . 76 . . 55 . 20 . . Shots Fired 380 | 48 122 3 . 8 93 . . 97 . . 5 . 4 . . Gun 319 | 48 121 . . 6 93 . . 46 . . 5 . . . . Cannon 47 | . . . . . . . . 47 . . . . . . . Launcher 9 | . . 3 . 2 . . . 4 . . . . . . . Special 5 | . 1 . . . . . . . . . . . 4 . . Kinetic 333 | 48 96 . . 4 93 . . 92 . . . . . . . Thermal 32 | . 26 . . 2 . . . . . . . . 4 . . Explosive 9 | . . 3 . 2 . . . 4 . . . . . . . Electromagnetic 6 | . . . . . . . . 1 . . 5 . . . . Robot Hit Streak 17 | 12 13 . . 1 17 . . 11 . . 6 . . . . Robot Miss Streak 7 | 2 6 6 . 7 3 . . 4 . . . . . . . Penetration Max 1 | . . . . . . . . 1 . . . . . . . Secondary Targets 6 | . 3 . . . 3 . . . . . . . . . . Max Gunslinging Chain 1 | . 1 . . . 1 . . . . . . . . . . Shots Hit Robots 260 | 32 70 . . 2 66 . . 66 . . 7 7 . 3 7 Core Hits 133 | 13 27 3 . 5 26 . . 41 . . 9 2 . 3 4 Critical Kills 1 | . . . . . . . . 1 . . . . . . . Critical Parts Destroyed 2 | . . . . . 1 . . 1 . . . . . . . Critical Strikes 7 | . . . . . 1 . . 6 . . . . . . . Destroy 2 | . . . . . 1 . . 1 . . . . . . . Blast 4 | . . . . . . . . 4 . . . . . . . Smash 1 | . . . . . . . . 1 . . . . . . . Melee Attacks 51 | . . . . . . . . 5 . . 6 7 . 16 17 Impact 21 | . . . . . . . . 5 . . . . . . 16 Slashing 30 | . . . . . . . . . . . 6 7 . 16 1 Piercing . | . . . . . . . . . . . . . . . . Sneak Attacks 12 | . . . . . . . . 5 . . 1 2 . 3 1 Combat Hostiles . | . . . . . . . . . . . . . . . . Follow-up Attacks 2 | . . . . . . . . . . . . . . . 2 Damage Inflicted 7803 | 355 885 182 . 224 1102 . . 3250 . . 841 371 9 206 378 Guns 3045 | 355 883 . . 33 1102 . . 656 . . 16 . . . . Cannons 959 | . . . . . . . . 959 . . . . . . . Explosions 2295 | . . 182 . 191 . . . 1215 . . 707 . . . . Melee 1493 | . . . . . . . . 420 . . 118 371 . 206 378 Ramming 11 | . 2 . . . . . . . . . . . 9 . . Kinetic 3669 | 355 602 . . 17 1102 . . 1593 . . . . . . . Thermal 1452 | . 281 . . 16 . . . 448 . . 707 . . . . Explosive 1140 | . . 182 . 191 . . . 767 . . . . . . . Electromagnetic 38 | . . . . . . . . 22 . . 16 . . . . Impact 722 | . . . . . . . . 420 . . . . . . 302 Slashing 771 | . . . . . . . . . . . 118 371 . 206 76 Piercing . | . . . . . . . . . . . . . . . . Highest Corruption 6 | . . . . . . 2 2 6 3 3 1 1 2 . . Average Corruption 2 | . . . . . . 2 2 3 3 3 1 1 2 . . Corruption Purged 6 | . . . . . . . . 5 . . . 1 . . . Corruption Blocked . | . . . . . . . . . . . . . . . . Effects 41 | . . . . . . 1 13 25 2 . . . . . . Message Errors 8 | . . . . . . 1 3 4 . . . . . . . Matter Fused 9 | . . . . . . . 4 4 1 . . . . . . Heat Flow Errors 11 | . . . . . . . 1 9 1 . . . . . . Energy Discharges 3 | . . . . . . . . 3 . . . . . . . Data Loss (minor) 3 | . . . . . . . 2 1 . . . . . . . Data Loss (major) 4 | . . . . . . . 3 1 . . . . . . . Misfires 1 | . . . . . . . . 1 . . . . . . . Alerts 1 | . . . . . . . . 1 . . . . . . . Weapon Failures 1 | . . . . . . . . 1 . . . . . . . Overload Shots . | . . . . . . . . . . . . . . . . Overflow Damage 696 | . . 8 . 1 . . . 428 . . 127 121 . . 11 Projectiles 13 | . . . . . . . . 9 . . . . . . 4 Explosions 280 | . . 8 . 1 . . . 144 . . 127 . . . . Melee 403 | . . . . . . . . 275 . . . 121 . . 7 Knockbacks 12 | . . . . . . . . 10 . . . . . . 2 Impact 2 | . . . . . . . . 1 . . . . . . 1 Kinetic 9 | . . . . . . . . 9 . . . . . . . Secondary 1 | . . . . . . . . . . . . . . . 1 Self-Inflicted Damage 313 | . . 22 . 30 . . . 66 . . 191 . 4 . . Shots 7 | . . 2 . 2 . . . 1 . . 2 . . . . Rammed 5 | . 1 . . . . . . . . . . . 4 . . Targets Rammed 5 | . 1 . . . . . . . . . . . 4 . . Kicked . | . . . . . . . . . . . . . . . . Crushed . | . . . . . . . . . . . . . . . . Highest Temperature 436 | . 203 . . 48 361 . 198 372 227 . . . . 436 26 Average Temperature 108 | . 56 . . 26 45 . 109 121 116 . . . . 250 12 Received Heat Transfer 1863 | . 375 . . . 216 . . 840 . 18 . 102 . 45 267 Effects 5 | . . . . . . . . . . . . . . 5 . Shutdowns 3 | . . . . . . . . . . . . . . 3 . Interference 1 | . . . . . . . . . . . . . . 1 . Short Circuit 1 | . . . . . . . . . . . . . . 1 . Siege Activations . | . . . . . . . . . . . . . . . . Robots Corrupted . | . . . . . . . . . . . . . . . . Combat Hostiles . | . . . . . . . . . . . . . . . . Parts Fried 5 | . . . . . . . . 5 . . . . . . . Impact Corruptions 12 | . . . . . . . . 10 . . . . . . 2 Robots Melted . | . . . . . . . . . . . . . . . . Combat Hostiles . | . . . . . . . . . . . . . . . . Parts Melted 1 | . 1 . . . . . . . . . . . . . . Heat Transferred 1416 | . 629 . . 37 . . . 250 . . 500 . . . . Parts Sabotaged . | . . . . . . . . . . . . . . . . Parts Stolen . | . . . . . . . . . . . . . . . . Parts Stripped . | . . . . . . . . . . . . . . . . Power Chain Reactions . | . . . . . . . . . . . . . . . . Alert | -11 -10 -10 -10 -9 -8 -7 -7 -7 -7 -7 -6 -6 -5 -4 -3 ------- Run | Yrd Mat Min Exi Min Mat Fac Was Fac Low Low Fac Ext Fac Fac Res Peak Influence 1694 | 40 190 142 . 123 164 53 18 1694 . . 866 449 126 291 130 Initial 536 | . 26 33 . . . 53 18 . . . 536 417 126 61 82 Average 202 | 21 99 104 . 37 38 53 6 875 . . 668 342 126 117 96 Maximum Alert Level 5 | . . . . . . . . 5 . . 3 2 . 1 . Low Security (%) 83 | 100 100 100 . 100 100 100 100 23 . . . . 100 86 100 Level 1 4 | . . . . . . . . 13 . . . 60 . 13 . Level 2 2 | . . . . . . . . 9 . . 60 39 . . . Level 3 . | . . . . . . . . 1 . . 39 . . . . Level 4 5 | . . . . . . . . 33 . . . . . . . Level 5 2 | . . . . . . . . 17 . . . . . . . High Security . | . . . . . . . . . . . . . . . . Max Security . | . . . . . . . . . . . . . . . . Squads Dispatched 25 | . 4 . . . 1 1 . 15 . . . 1 . 3 . Investigation 3 | . 1 . . . . . . 1 . . . . . 1 . Extermination 6 | . . . . . . 1 . 4 . . . . . 1 . Reinforcement 11 | . 3 . . . 1 . . 5 . . . 1 . 1 . Assault 2 | . . . . . . . . 2 . . . . . . . Garrison 3 | . . . . . . . . 3 . . . . . . . Intercept . | . . . . . . . . . . . . . . . . Searches Triggered . | . . . . . . . . . . . . . . . . Construction Impeded 3 | . . . . . . . . 3 . . . . . . . Haulers Reinforced . | . . . . . . . . . . . . . . . . Active Scanning Responses . | . . . . . . . . . . . . . . . . Cargo Convoy Interrupts 1 | . . . . . . . . 1 . . . . . . . Stealth | -11 -10 -10 -10 -9 -8 -7 -7 -7 -7 -7 -6 -6 -5 -4 -3 --------- Run | Yrd Mat Min Exi Min Mat Fac Was Fac Low Low Fac Ext Fac Fac Res Distress Signals 7 | . . . . . 1 . . . . . . 2 . 2 2 Communications Jammed . | . . . . . . . . . . . . . . . . Distress Signals . | . . . . . . . . . . . . . . . . Times Spotted 178 | . 20 3 . 4 17 . . 52 1 7 14 21 . 17 22 Peak Tracking Total 17 | . 5 3 . 4 5 1 . 10 1 7 12 16 . 9 17 Tactical Retreats 18 | . 1 . . . . . . 5 . . 3 2 . 5 2 Traps | -11 -10 -10 -10 -9 -8 -7 -7 -7 -7 -7 -6 -6 -5 -4 -3 ------- Run | Yrd Mat Min Exi Min Mat Fac Was Fac Low Low Fac Ext Fac Fac Res Traps Triggered 6 | . 3 . . . . 2 . . . . . . . . 1 Indirectly . | . . . . . . . . . . . . . . . . Trap Hack Attempts . | . . . . . . . . . . . . . . . . Triggered . | . . . . . . . . . . . . . . . . Disarmed . | . . . . . . . . . . . . . . . . Reprogrammed . | . . . . . . . . . . . . . . . . Reused . | . . . . . . . . . . . . . . . . Traps Extracted . | . . . . . . . . . . . . . . . . Installed . | . . . . . . . . . . . . . . . . Triggered . | . . . . . . . . . . . . . . . . Machines | -11 -10 -10 -10 -9 -8 -7 -7 -7 -7 -7 -6 -6 -5 -4 -3 ---------- Run | Yrd Mat Min Exi Min Mat Fac Was Fac Low Low Fac Ext Fac Fac Res Machines Disabled 13 | . . 1 . 1 1 . . 4 . . 5 . . 1 . Max in Single Turn 5 | . . 1 . 1 1 . . 2 . . 5 . . 1 . Garrison Access 1 | . . . . . . . . . . . . . . 1 . Machines Repaired . | . . . . . . . . . . . . . . . . Machines Dismantled 7 | . . . . . . . . . . . . . 7 . . Machines Sabotaged . | . . . . . . . . . . . . . . . . Overloaded Fab Kills . | . . . . . . . . . . . . . . . . Hacking | -11 -10 -10 -10 -9 -8 -7 -7 -7 -7 -7 -6 -6 -5 -4 -3 --------- Run | Yrd Mat Min Exi Min Mat Fac Was Fac Low Low Fac Ext Fac Fac Res Machines Accessed 24 | . 2 . 1 . 4 . . 2 . . 2 7 . 6 . Terminals 16 | . 2 . . . 2 . . 1 . . 1 7 . 3 . Fabricators 1 | . . . . . . . . . . . 1 . . . . Repair Stations 3 | . . . . . 1 . . . . . . . . 2 . Recycling Units 1 | . . . . . 1 . . . . . . . . . . Scanalyzers . | . . . . . . . . . . . . . . . . Garrison Access 2 | . . . . . . . . 1 . . . . . 1 . Total Hacks 47 | . 2 . 1 . 9 . . 5 . . 5 11 . 14 . Successful 26 | . 2 . 1 . 6 . . . . . 1 8 . 8 . Failed 21 | . . . . . 3 . . 5 . . 4 3 . 6 . Catastrophic 2 | . . . . . . . . 2 . . . . . . . Database Lockouts . | . . . . . . . . . . . . . . . . Manual 26 | . 2 . 1 . 6 . . 1 . . 4 5 . 7 . Terminals 31 | . 2 . . . 6 . . 1 . . 4 11 . 7 . Fabricators 1 | . . . . . . . . . . . 1 . . . . Repair Stations 8 | . . . . . 2 . . . . . . . . 6 . Recycling Units 1 | . . . . . 1 . . . . . . . . . . Scanalyzers . | . . . . . . . . . . . . . . . . Garrison Access 5 | . . . . . . . . 4 . . . . . 1 . Terminal Hacks 8 | . . . 1 . 1 . . . . . . 6 . . . Open Door 5 | . . . . . . . . . . . . 5 . . . Terminal Index 1 | . . . . . 1 . . . . . . . . . . Unreport Threat 1 | . . . . . . . . . . . . 1 . . . Derelict Proto ID Bank 1 | . . . 1 . . . . . . . . . . . . Fabricator Hacks . | . . . . . . . . . . . . . . . . Repair Station Hacks 7 | . . . . . 2 . . . . . . . . 5 . Scan Component 3 | . . . . . 1 . . . . . . . . 2 . Repair 3 | . . . . . 1 . . . . . . . . 2 . Refit 1 | . . . . . . . . . . . . . . 1 . Recycling Unit Hacks 1 | . . . . . 1 . . . . . . . . . . Retrieve Components 1 | . . . . . 1 . . . . . . . . . . Scanalyzer . | . . . . . . . . . . . . . . . . Garrison Access Hacks 1 | . . . . . . . . . . . . . . 1 . Seal Access 1 | . . . . . . . . . . . . . . 1 . Unauthorized Hacks 9 | . 2 . . . 2 . . . . . 1 2 . 2 . Terminals 9 | . 2 . . . 2 . . . . . 1 2 . 2 . Botnet 9 | . 2 . . . 2 . . . . . 1 2 . 2 . Fabricators . | . . . . . . . . . . . . . . . . Repair Stations . | . . . . . . . . . . . . . . . . Recycling Units . | . . . . . . . . . . . . . . . . Scanalyzers . | . . . . . . . . . . . . . . . . Garrison Access . | . . . . . . . . . . . . . . . . Data Cores Recovered 1 | . . . . . . . . 1 . . . . . . . Used . | . . . . . . . . . . . . . . . . Hacking Detections 14 | . . . . . 3 . . 2 . . 2 3 . 4 . Full Trace Events 2 | . . . . . . . . 1 . . . . . 1 . Feedback Events . | . . . . . . . . . . . . . . . . Feedback Blocked . | . . . . . . . . . . . . . . . . Robot Schematics Acquired . | . . . . . . . . . . . . . . . . Robots Built . | . . . . . . . . . . . . . . . . Authchips . | . . . . . . . . . . . . . . . . Time . | . . . . . . . . . . . . . . . . Total Robot Build Rating . | . . . . . . . . . . . . . . . . Part Schematics Acquired . | . . . . . . . . . . . . . . . . Parts Built . | . . . . . . . . . . . . . . . . Authchips . | . . . . . . . . . . . . . . . . Time . | . . . . . . . . . . . . . . . . Total Part Build Rating . | . . . . . . . . . . . . . . . . Parts Repaired 3 | . . . . . 1 . . . . . . . . 2 . Time 214 | . . . . . 108 . . . . . . . . 106 . Parts Recycled . | . . . . . . . . . . . . . . . . Recycled Matter . | . . . . . . . . . . . . . . . . Retrieved Matter . | . . . . . . . . . . . . . . . . Retrieved Components 3 | . . . . . 3 . . . . . . . . . . Parts Scanalyzed . | . . . . . . . . . . . . . . . . Part Schematics Acquired . | . . . . . . . . . . . . . . . . Parts Damaged . | . . . . . . . . . . . . . . . . Bothacking | -11 -10 -10 -10 -9 -8 -7 -7 -7 -7 -7 -6 -6 -5 -4 -3 ------------ Run | Yrd Mat Min Exi Min Mat Fac Was Fac Low Low Fac Ext Fac Fac Res Used RIF Installer . | . . . . . . . . . . . . . . . . Robots Hacked . | . . . . . . . . . . . . . . . . Non-combat . | . . . . . . . . . . . . . . . . Combat . | . . . . . . . . . . . . . . . . Robot Hacks Applied . | . . . . . . . . . . . . . . . . Relay Couplers Released . | . . . . . . . . . . . . . . . . Fabnet Peak Effective % . | . . . . . . . . . . . . . . . . Robots Rewired . | . . . . . . . . . . . . . . . . Allies Hacked 1 | . . . . . . . . 1 . . . . . . . Hacks Repelled . | . . . . . . . . . . . . . . . . Allies | -11 -10 -10 -10 -9 -8 -7 -7 -7 -7 -7 -6 -6 -5 -4 -3 -------- Run | Yrd Mat Min Exi Min Mat Fac Was Fac Low Low Fac Ext Fac Fac Res Total Allies 24 | . . . . . . . 20 . . . . 4 . . . Largest Group 20 | . . . . . . . 20 20 . . . 1 . . . Highest-Rated Group 572 | . . . . . . . 572 572 . . . 25 . . . Highest-Rated Ally 35 | . . . . . . . 35 35 . . . 25 . . . Total Orders . | . . . . . . . . . . . . . . . . Ally Attacks 233 | . . . . . . . . 229 . . . 4 . . . Total Damage 5570 | . . . . . . . . 5439 . . . 131 . . . Kills 40 | . . . . . . . . 40 . . . . . . . Allies Corrupted 1 | . . . . . . . . 1 . . . . . . . Allies Melted . | . . . . . . . . . . . . . . . . Intel | -11 -10 -10 -10 -9 -8 -7 -7 -7 -7 -7 -6 -6 -5 -4 -3 ------- Run | Yrd Mat Min Exi Min Mat Fac Was Fac Low Low Fac Ext Fac Fac Res Robot Analysis Total . | . . . . . . . . . . . . . . . . Derelict Logs Recovered 2 | . . . . 1 . . . . 1 . . . . . . Drone Launches . | . . . . . . . . . . . . . . . . Drone Recoveries . | . . . . . . . . . . . . . . . . Exploration | -11 -10 -10 -10 -9 -8 -7 -7 -7 -7 -7 -6 -6 -5 -4 -3 ------------- Run | Yrd Mat Min Exi Min Mat Fac Was Fac Low Low Fac Ext Fac Fac Res Turns Passed 9206 | 278 962 274 998 1288 1044 331 1158 1302 177 9 94 118 305 683 185 Spaces Moved 4722 | 126 399 112 293 223 255 103 454 657 537 28 184 236 239 695 181 Core 279 | 7 . . . . . . . . . . . 21 239 7 5 Treads 2354 | 119 399 112 293 223 255 103 454 396 . . . . . . . Legs . | . . . . . . . . . . . . . . . . Wheels . | . . . . . . . . . . . . . . . . Hover 864 | . . . . . . . . . . . . . . 688 176 Flight 1225 | . . . . . . . . 261 537 28 184 215 . . . Fastest Speed 28 | 50 160 240 240 560 320 320 240 28 32 32 32 35 50 50 50 Average Speed 164 | 153 186 240 333 560 320 320 244 162 32 32 32 37 50 64 68 Slowest Speed 560 | 160 320 240 560 560 320 320 320 400 32 32 35 165 50 81 150 Overloaded Moves . | . . . . . . . . . . . . . . . . Propulsion Burnouts . | . . . . . . . . . . . . . . . . Robots Hopped 2 | . . . . . . . . 1 . . . 1 . . . Cave-ins Triggered . | . . . . . . . . . . . . . . . . Exploration Rate (%) 32 | 5 64 30 60 47 24 4 89 23 76 6 7 39 7 28 10 Regions Visited 15 Branch Regions 6 Pre-discovered Areas . | . . . . . . . . . . . . . . . . Known Exits Taken 1 | . . . . . . . . . . . 1 . . . . Unknown Exits Taken 12 | 1 1 1 1 1 1 . . 1 1 1 . 1 1 1 . Scrap Searched 6 | . . . . 1 . . . . 5 . . . . . . Spaces Dug 29 | . 1 . . 13 . . . . . . 3 . . 6 6 Terrain Destroyed 172 | . 1 20 . 13 . . . 62 . . 64 . . 6 6 Melee 15 | . . . . . . . . . . . 3 . . 6 6 Projectile 6 | . 1 . . . . . . 5 . . . . . . . AOE 151 | . . 20 . 13 . . . 57 . . 61 . . . . Terrain Rammed . | . . . . . . . . . . . . . . . . Walls Destroyed . | . . . . . . . . . . . . . . . . Machines Disabled . | . . . . . . . . . . . . . . . . Actions | -11 -10 -10 -10 -9 -8 -7 -7 -7 -7 -7 -6 -6 -5 -4 -3 --------- Run | Yrd Mat Min Exi Min Mat Fac Was Fac Low Low Fac Ext Fac Fac Res Total 5686 | 163 499 115 318 265 432 107 517 794 541 27 205 249 332 907 215 Wait 271 | . . . . 1 89 . . 19 . . 3 . . 157 2 Move 4704 | 125 398 111 292 222 254 103 453 654 536 27 183 233 238 694 181 Hop 2 | . . . . . . . . 1 . . . 1 . . . Pick Up 127 | 5 10 . 22 21 14 1 17 14 1 . 1 2 1 14 4 Fast Attach 49 | 6 4 . . . 1 . 2 4 2 . 3 4 2 16 5 Attach 39 | 1 4 . 1 . 7 2 1 16 . . 3 . 1 2 1 Detach 14 | . 1 . . . 1 . 3 5 . . 1 . . 1 2 Swap 36 | 2 10 1 . 2 8 1 3 6 . . . . . 2 1 Drop 82 | . 3 . 3 11 11 . 26 11 2 . . 2 . 9 4 Fire 217 | 24 68 3 . 8 47 . . 58 . . 5 . 4 . . Melee 44 | . . . . . . . . 5 . . 6 7 . 11 15 Ram 4 | . . . . . . . . . . . . . 4 . . Kick . | . . . . . . . . . . . . . . . . Crush 1 | . 1 . . . . . . . . . . . . . . Escape Stasis . | . . . . . . . . . . . . . . . . Rewire 13 | . . . . . . . 12 1 . . . . . . . Trap . | . . . . . . . . . . . . . . . . Miscellaneous 83 | . . . . . . . . . . . . . 82 1 . Route ------- -11/Scrapyard -10/Materials (discovered 3 exits: [*Mat] / [*Min x2]) -10/Mines -10/Exiles -9/Mines -8/Materials -7/Factory -7/Waste -7/Factory -7/Lower Caves -7/Lower Caves -6/Factory -6/Extension -5/Factory -4/Factory -3/Research History --------- Turn | Location | Event 8 | -11/Scrapyard | Discovered new exit (range 15) 279 | -11/Scrapyard | Entered Materials 318 | -10/Materials | Build established: Mutant 643 | -10/Materials | Discovered new exit (range 16) 1016 | -10/Materials | Discovered new exit (range 15) 1186 | -10/Materials | Discovered new exit (range 7) 1241 | -10/Materials | Entered Mines 1262 | -10/Mines | Build established: Scavenger-Mutant 1334 | -10/Mines | Core integrity fell below 50% 1503 | -10/Mines | Deemed a non-threat by the Exiles lab entrance 1503 | -10/Mines | Discovered new exit (range 6) 1515 | -10/Mines | Entered Exiles 1575 | -10/Exiles | Met 8R-AWN 1616 | -10/Exiles | Met EX-HEX 1681 | -10/Exiles | Met EX-BIN 1715 | -10/Exiles | Aligned with FarCom system 1717 | -10/Exiles | Given EX-Vault access code 1782 | -10/Exiles | Opened EX-Vault 1799 | -10/Exiles | Found Cloak of Protection 1848 | -10/Exiles | Warned to stay clear of 0b10 Research branches 1915 | -10/Exiles | Met EX-DEC 2303 | -10/Exiles | Build established: Hauler-Mutant 2462 | -10/Exiles | Discovered new exit (range 10) 2513 | -10/Exiles | Left Exiles lab with Cloak of Protection 2513 | -10/Exiles | Entered Mines 2577 | -9/Mines | Met a Derelict bent on vengeance 2678 | -9/Mines | Joined a pair of Derelicts in attacking an 0b10 outpost 2694 | -9/Mines | Learned Materials garrison access intel 3264 | -9/Mines | Received a Rocket Launcher from a helpful Derelict 3637 | -9/Mines | Found a damaged Exp. Sensor Array with a note attached 3649 | -9/Mines | Found Prototype Device 3745 | -9/Mines | Discovered new exit (range 10) 3801 | -9/Mines | Entered Materials 3801 | -8/Materials | Evolved 4 slots: Propulsion x2, Utility x2 3802 | -8/Materials | Loaded intel: 1 garrison access location 3803 | -8/Materials | Identified Exp. Sensor Array 4337 | -8/Materials | Repaired Faulty Exp. Sensor Array 4823 | -8/Materials | Discovered new exit (range 3) 4845 | -8/Materials | Entered Factory 4845 | -7/Factory | Evolved 2 slots: Propulsion x1, Utility x1 5176 | -7/Factory | Sucked down chute 5176 | -7/Factory | Entered Waste 5177 | -7/Waste | Joined by Warlord forces that had cleared the area 5284 | -7/Waste | Found Damper Plating 5448 | -7/Waste | Found Damper Plating 5479 | -7/Waste | Discovered new exit (range 15) 6334 | -7/Waste | Entered Factory 6334 | -7/Factory | Accompanied by 20 allies 6489 | -7/Factory | Lost 3 allies 7004 | -7/Factory | Lost 5 allies 7070 | -7/Factory | Cargo convoy interrupted 7081 | -7/Factory | P-60 Hacker assimilated allied F8-79G(g) 7083 | -7/Factory | P-60 Hacker assimilated allied O1-P9A(g) 7120 | -7/Factory | Lost 6 allies 7134 | -7/Factory | First assault squad dispatched 7568 | -7/Factory | Lost 7 parts (2p3n1u1w) 7633 | -7/Factory | Discovered new exit (range 4) 7636 | -7/Factory | Entered Lower Caves 7645 | -7/Lower Caves | Learned Factory terminal intel 7691 | -7/Lower Caves | Spotted B-75 Beast 7812 | -7/Lower Caves | Discovered new exit (range 3) 7813 | -7/Lower Caves | Entered another Lower Caves area 7817 | -7/Lower Caves | Core integrity fell below 50% 7820 | -7/Lower Caves | Discovered new exit (range 7) 7822 | -7/Lower Caves | Entered Factory 7822 | -6/Factory | Evolved 2 slots: Utility x2 7823 | -6/Factory | Loaded intel: 28 terminal locations 7900 | -6/Factory | Destroyed 7 combat bots 7912 | -6/Factory | Discovered new exit (range 13) 7916 | -6/Factory | Identified exit to Extension 7916 | -6/Factory | Entered Extension 7944 | -6/Extension | Lost 6 parts (1p1n2u2w) 7980 | -6/Extension | Rescued a captive Derelict 7985 | -6/Extension | Core integrity fell below 50% 7990 | -6/Extension | Rescued a captive Derelict 7994 | -6/Extension | Rescued a captive Derelict 7994 | -6/Extension | Rescued a captive Derelict 8014 | -6/Extension | Rescued a captive Derelict 8023 | -6/Extension | Spotted B-75 Beast 8025 | -6/Extension | Spotted B-75 Beast 8031 | -6/Extension | Core integrity fell below 20% 8033 | -6/Extension | Discovered new exit (range 3) 8034 | -6/Extension | Entered Factory 8034 | -5/Factory | Evolved 2 slots: Power x1, Utility x1 8036 | -5/Factory | Lost 3 allies 8056 | -5/Factory | Lost 7 parts (1n4u2w) 8184 | -5/Factory | Build established: Hacker-Mutant 8331 | -5/Factory | Discovered new exit (range 9) 8339 | -5/Factory | Entered another Factory area 8339 | -4/Factory | Evolved 2 slots: Propulsion x2 8808 | -4/Factory | Build established: Hacker-Gladiator 8840 | -4/Factory | Repaired Antigrav System 8907 | -4/Factory | Repaired Imp. Gravmag System 8944 | -4/Factory | Discovered new exit (range 15) 9022 | -4/Factory | Entered Research 9022 | -3/Research | Evolved 2 slots: Utility x2 9056 | -3/Research | Spotted B-86 Titan 9192 | -3/Research | Core integrity fell below 50% 9201 | -3/Research | Core integrity fell below 20% 9207 | -3/Research | Destroyed by S-43 Plague with Heavy Machine Gun Last Messages --------------- Lgt. Ion Engine. 09192_ Dropped Lrg. Storage Unit. 09193_ Acquired Imp. Target Analyzer. 09195_ K-01 Serf collects debris. 09195_ Thunder Hammer destroyed. 09198_ Acquired Katana. 09199_ K-01 Serf collects debris. 09201_ Katana destroyed. 09201_ Slug penetrates Wall. 09202_ Penetrated by Slug. 09202_ S-43 Plague IFF system glitched. 09202_ O-32 Director: "IFF HANDSHAKE FAILED. SECURING TERMINAL." 09204_ Gyrokinetic Inverter destroyed. 09205_ Slug penetrates Wall. 09205_ Slug penetrates O-32 Director. 09206_ Slug penetrates Wall. 09206_ Penetrated by Slug. 09206_ Slug penetrates Wall. 09206_ Imp. Target Analyzer destroyed. Map ----- +----------------------------------------------------+ | ?????????????????????????????????????????????????? | | ?????????????????????????????????????????????????? | | ?????????????????????????????????????????????????? | | ?????????????????????????????????????????????????? | | ?????????????????????????????????????????????????? | | ?????????????????????????????????????????????????? | | ?????????????????????????????????????????????????? | | ?????????????????????????????????????????????????? | | ?????????????????????????????????????????????????? | | ?????????????????????????????????????????????????? | | ??????????????????????w??????????????????????????? | | ?????????????????????????????????????????????????? | | ?????????????????????????????????????????????????? | | ?????????????????????????????????????????????????? | | ?????????????????????????????????????????????????? | | ?????????????????????????????????????????????????? | | ?????????????????????????????????????????????????? | | ?????????????????????????????????????????????????? | | ????????????????????????? ???????????????????????? | | ????????????????????????? ???????????????????????? | | ????????????????????????? ???????????????????????? | | ????????????????????????? ??????????????????????? | | ??????????????????????###+##??################???? | | ??????????????????????# #??# """"""""""" ???? | | ??????????????????????# #??# """"T"""" ?#??? | | ??????????????????????# @ #??# #??? | | ??????????? ??????????# #??# ##?? | | ?????????# ?????????# #??# """ #?? | | ?????????# ?????????# #??# """ #??? | | ?????????# ????????# #??# !! """ #??? | | ?????????w ???????# #??# ! ##?? | | ?????????? ??????# o #??# % ! + | | ??????????? ??????# #??# %*= #??? | | ????????????? ?????# #??######/#/########### | | ?????????????h ????# ######"## %[/ | | ???????????????? h ???#sss # # # | | ????????########"# #### # # # | | ?????? " *[] # """ # # | | ?????? # !sYg s# R" # # | | ???????? "% !!! # """ # # | | ?????# " ! + # ######+### | | ?????? # s# # | | ?????? """ ?# g # # | | ?????????"" ???# g ######### | | ???????????????#[! ???? | | ???????????????#[! ###???#############+### | | ???????????????#!! """ #?????????????????????? | | ???????????????# """ +?????????????????????? | | ???????????????# # ????????????????????# | | ???????????????# ^ # ???????????????????# | +----------------------------------------------------+ Best States ------------- Heat Dissipation 46 Energy Generation 47 Energy Capacity 325 Matter Stores 300 Matter Capacity 300 Sight Range 16 Terrain Scan Range 16 Terrain Scan Density 210 Power Amplification 40 Propulsion Shielding 66 Utility Shielding 66 Evasion (%) 64 Targeting Accuracy 14 Melee Accuracy 6 Target Analysis 9 Recoil Reduction 5 Offensive Hacking 20 Defensive Hacking 21 Item Schematics ----------------- None Robot Schematics ------------------ None Fabricated ------------ Nothing Alien Tech Used ----------------- None Achievements -------------- None Challenges ------------ None Game ------ Seed RestorationBeamRifle Manual? 0 Play Time 01:18:57 Cumulative 115.1 hours Start 2024.04.25 @ 19:29:42 End 2024.04.25 @ 22:53:23 Sessions 5 Manual Loads 0 Difficulty Rogue Special Mode None Game No. 133 Rogue 133 Adventurer 0 Explorer 0 Win Type - Total 0 Types 0/0/0/0/0/0/0/0/0 Lore% 29 Gallery% 55 Achievement% 41 Wizard Run 0 Options --------- Layout 1 ASCII 0 Keyboard 1 Movement Vi Keybinds 0 Fullscreen 1 Font 24/Smallcaps Map View 50x35 Zoom Use 0% Tactical HUD 1 Map Filters NONE Filters NONE Steam 1 RUN: 2c89036e-9ab6-4168-9e56-d5ed6f2dc1d2